[Event "Late-Titled-Tuesday-Blitz-March-12-2024"]
[Site "Chess.com"]
[Date "2024.03.12"]
[Round "7"]
[White "LUISMIGUELOV"]
[Black "jcmesafischer"]
[Result "1-0"]
[WhiteElo "2125"]
[BlackElo "2359"]
[TimeControl "180+1"]
[EndTime "15:15:11 PDT"]
[Termination "LUISMIGUELOV won on time"]

1. d4 {[%clk 0:03:00.9]} 1... Nf6 {[%clk 0:02:58.6]} 2. Nf3 {[%clk 0:03:01.3]}
2... d5 {[%clk 0:02:58.7]} 3. Bg5 {[%clk 0:03:01.3]} 3... c5 {[%clk 0:02:52.6]}
4. dxc5 {[%clk 0:02:58.9]} 4... e6 {[%clk 0:02:51.7]} 5. c3 {[%clk 0:02:57]}
5... Bxc5 {[%clk 0:02:51.1]} 6. e3 {[%clk 0:02:57.4]} 6... Nbd7 {[%clk
0:02:39.4]} 7. Nbd2 {[%clk 0:02:55.4]} 7... O-O {[%clk 0:02:35.4]} 8. Bd3 {[%clk
0:02:52.1]} 8... h6 {[%clk 0:02:32.9]} 9. Bh4 {[%clk 0:02:51]} 9... Qb6 {[%clk
0:02:31.9]} 10. b4 {[%clk 0:02:45.6]} 10... Bd6 {[%clk 0:02:30.8]} 11. O-O
{[%clk 0:02:45.2]} 11... Qc7 {[%clk 0:02:04.9]} 12. Rc1 {[%clk 0:02:38.9]} 12...
Ng4 {[%clk 0:01:54.1]} 13. Bg3 {[%clk 0:02:38]} 13... Nge5 {[%clk 0:01:47.7]}
14. Bb1 {[%clk 0:02:26.7]} 14... b5 {[%clk 0:00:32.7]} 15. Qc2 {[%clk
0:02:23.4]} 15... Nf6 {[%clk 0:00:25.8]} 16. Nd4 {[%clk 0:02:18.9]} 16... a6
{[%clk 0:00:23.4]} 17. h3 {[%clk 0:02:03.9]} 17... Nc4 {[%clk 0:00:20]} 18. Bh4
{[%clk 0:01:59]} 18... Nxd2 {[%clk 0:00:11]} 19. Qxd2 {[%clk 0:01:49.7]} 19...
Ne4 {[%clk 0:00:10.3]} 20. Qd3 {[%clk 0:01:33.5]} 20... g5 {[%clk 0:00:08]} 21.
f3 {[%clk 0:01:33.4]} 21... Bh2+ {[%clk 0:00:04.7]} 22. Kh1 {[%clk 0:01:29.5]}
22... Ng3+ {[%clk 0:00:02.3]} 23. Bxg3 {[%clk 0:01:27.6]} 23... f5 {[%clk
0:00:01]} 24. Bxc7 {[%clk 0:01:25.6]} 24... Bxc7 {[%clk 0:00:01.9]} 25. e4
{[%clk 0:01:23.5]} 1-0

[Event "Late-Titled-Tuesday-Blitz-March-12-2024"]
[Site "Chess.com"]
[Date "2024.03.12"]
[Round "7"]
[White "Fjal"]
[Black "cassoulet"]
[Result "0-1"]
[WhiteElo "2300"]
[BlackElo "2774"]
[TimeControl "180+1"]
[EndTime "15:15:12 PDT"]
[Termination "cassoulet won by resignation"]

1. Nf3 {[%clk 0:03:00.9]} 1... Nf6 {[%clk 0:02:59.4]} 2. g3 {[%clk 0:03:00.9]}
2... g6 {[%clk 0:03:00]} 3. Bg2 {[%clk 0:03:01.8]} 3... Bg7 {[%clk 0:03:00.6]}
4. O-O {[%clk 0:03:02.5]} 4... O-O {[%clk 0:03:01.2]} 5. d3 {[%clk 0:03:03.4]}
5... d6 {[%clk 0:03:01.8]} 6. e4 {[%clk 0:03:04]} 6... Nbd7 {[%clk 0:03:02.4]}
7. Nc3 {[%clk 0:03:04.5]} 7... a6 {[%clk 0:03:03]} 8. a4 {[%clk 0:03:05.2]} 8...
c5 {[%clk 0:03:03.6]} 9. h3 {[%clk 0:03:04.1]} 9... Rb8 {[%clk 0:03:03.7]} 10.
Be3 {[%clk 0:03:04.6]} 10... b5 {[%clk 0:03:03.9]} 11. axb5 {[%clk 0:03:02.9]}
11... axb5 {[%clk 0:03:04.8]} 12. Qd2 {[%clk 0:03:02.4]} 12... b4 {[%clk
0:03:05.1]} 13. Ne2 {[%clk 0:03:00.8]} 13... Bb7 {[%clk 0:03:04.7]} 14. Bh6
{[%clk 0:03:00.4]} 14... e6 {[%clk 0:03:04.4]} 15. Bxg7 {[%clk 0:02:55.8]} 15...
Kxg7 {[%clk 0:03:05.3]} 16. c3 {[%clk 0:02:54]} 16... Qb6 {[%clk 0:03:03.2]} 17.
Qe3 {[%clk 0:02:48.1]} 17... e5 {[%clk 0:02:57.4]} 18. Nd2 {[%clk 0:02:47.3]}
18... d5 {[%clk 0:02:44]} 19. d4 {[%clk 0:02:34.8]} 19... exd4 {[%clk
0:02:24.5]} 20. cxd4 {[%clk 0:02:35.7]} 20... cxd4 {[%clk 0:02:22.2]} 21. Nxd4
{[%clk 0:02:35]} 21... dxe4 {[%clk 0:02:18.3]} 22. Rfc1 {[%clk 0:01:48]} 22...
Rfe8 {[%clk 0:02:07.9]} 23. Nc4 {[%clk 0:01:42.9]} 23... Qc5 {[%clk 0:01:59.9]}
24. Na5 {[%clk 0:01:38.1]} 24... Qd5 {[%clk 0:01:52.2]} 25. Nxb7 {[%clk
0:01:35.5]} 25... Rxb7 {[%clk 0:01:51.4]} 26. Ra6 {[%clk 0:01:23.3]} 26... Qe5
{[%clk 0:01:48.2]} 27. Rd1 {[%clk 0:01:06.2]} 27... Nd5 {[%clk 0:01:43.5]} 28.
Qb3 {[%clk 0:01:06.7]} 28... Nc5 {[%clk 0:01:39.6]} 29. Qc4 {[%clk 0:00:37.7]}
29... Nxa6 {[%clk 0:01:39]} 30. Qxa6 {[%clk 0:00:38.6]} 30... Rd7 {[%clk
0:01:38.7]} 31. Nc6 {[%clk 0:00:33.9]} 31... Qxb2 {[%clk 0:01:34.9]} 32. Qb5
{[%clk 0:00:30.9]} 32... Nc3 {[%clk 0:01:31.4]} 0-1

[Event "Late-Titled-Tuesday-Blitz-March-12-2024"]
[Site "Chess.com"]
[Date "2024.03.12"]
[Round "7"]
[White "IlyaGrigorjev"]
[Black "jefferyx"]
[Result "0-1"]
[WhiteElo "2928"]
[BlackElo "3090"]
[TimeControl "180+1"]
[EndTime "15:15:15 PDT"]
[Termination "jefferyx won on time"]

1. e4 {[%clk 0:03:00.9]} 1... c5 {[%clk 0:02:59.8]} 2. Nf3 {[%clk 0:03:01.2]}
2... d6 {[%clk 0:03:00.4]} 3. d4 {[%clk 0:03:01.4]} 3... cxd4 {[%clk 0:03:01.3]}
4. Nxd4 {[%clk 0:03:02.3]} 4... Nf6 {[%clk 0:03:01.9]} 5. Nc3 {[%clk 0:03:02.9]}
5... a6 {[%clk 0:03:02.6]} 6. Bg5 {[%clk 0:03:03.2]} 6... e6 {[%clk 0:03:00.4]}
7. f4 {[%clk 0:03:03.5]} 7... h6 {[%clk 0:03:00.8]} 8. Bh4 {[%clk 0:03:03.8]}
8... Qb6 {[%clk 0:03:01.3]} 9. Qd2 {[%clk 0:03:03.9]} 9... Qxb2 {[%clk
0:03:01.4]} 10. Rb1 {[%clk 0:03:04.6]} 10... Qa3 {[%clk 0:03:02]} 11. e5 {[%clk
0:03:05.3]} 11... dxe5 {[%clk 0:03:00.8]} 12. fxe5 {[%clk 0:03:06.2]} 12... g5
{[%clk 0:03:01.2]} 13. exf6 {[%clk 0:03:02.5]} 13... gxh4 {[%clk 0:03:01.3]} 14.
Be2 {[%clk 0:02:57.4]} 14... h3 {[%clk 0:03:01]} 15. g3 {[%clk 0:02:55.2]} 15...
Nd7 {[%clk 0:02:58.8]} 16. O-O {[%clk 0:02:54.6]} 16... Qa5 {[%clk 0:02:50.7]}
17. Kh1 {[%clk 0:02:40.6]} 17... Bb4 {[%clk 0:02:49.6]} 18. Nxe6 {[%clk
0:01:40.9]} 18... fxe6 {[%clk 0:02:12.9]} 19. Rxb4 {[%clk 0:00:40.1]} 19... Qxb4
{[%clk 0:02:12.8]} 20. Qd3 {[%clk 0:00:36.2]} 20... Rf8 {[%clk 0:01:41.5]} 21.
Ne4 {[%clk 0:00:31.5]} 21... Kd8 {[%clk 0:01:35.7]} 22. f7 {[%clk 0:00:21.2]}
22... Kc7 {[%clk 0:01:30.8]} 23. c3 {[%clk 0:00:17.6]} 23... Qe7 {[%clk
0:01:30.5]} 24. Qc4+ {[%clk 0:00:03.4]} 24... Kb8 {[%clk 0:01:30.5]} 25. Rd1
{[%clk 0:00:02.5]} 25... Qxf7 {[%clk 0:01:22.7]} 26. Nd6 {[%clk 0:00:02.3]}
26... Qf2 {[%clk 0:01:22.3]} 0-1

[Event "Late-Titled-Tuesday-Blitz-March-12-2024"]
[Site "Chess.com"]
[Date "2024.03.12"]
[Round "7"]
[White "nindjaxx8"]
[Black "N4700000"]
[Result "1-0"]
[WhiteElo "2686"]
[BlackElo "2493"]
[TimeControl "180+1"]
[EndTime "15:15:18 PDT"]
[Termination "nindjaxx8 won by resignation"]

1. d4 {[%clk 0:03:00.9]} 1... Nf6 {[%clk 0:02:58.9]} 2. c4 {[%clk 0:03:01.5]}
2... Nc6 {[%clk 0:02:57.9]} 3. Nc3 {[%clk 0:03:02]} 3... e5 {[%clk 0:02:57.7]}
4. e3 {[%clk 0:02:56]} 4... Bb4 {[%clk 0:02:47.8]} 5. Nf3 {[%clk 0:02:51.8]}
5... d6 {[%clk 0:02:46.1]} 6. dxe5 {[%clk 0:02:48.6]} 6... Nxe5 {[%clk
0:02:30.4]} 7. Nxe5 {[%clk 0:02:46.2]} 7... dxe5 {[%clk 0:02:31.3]} 8. Qa4+
{[%clk 0:02:46]} 8... c6 {[%clk 0:02:22.5]} 9. Qxb4 {[%clk 0:02:46.9]} 9... Be6
{[%clk 0:02:18]} 10. Bd2 {[%clk 0:02:45.5]} 10... Qc7 {[%clk 0:02:15.3]} 11. Be2
{[%clk 0:02:41.6]} 11... a5 {[%clk 0:02:13.5]} 12. Qc5 {[%clk 0:02:40.6]} 12...
Nd7 {[%clk 0:02:12.5]} 13. Nb5 {[%clk 0:02:04.5]} 13... Qb8 {[%clk 0:01:58.6]}
14. Nd6+ {[%clk 0:02:02.3]} 14... Kf8 {[%clk 0:01:57.1]} 15. Qa3 {[%clk
0:01:59]} 15... Kg8 {[%clk 0:01:49.8]} 16. Bc3 {[%clk 0:01:54.6]} 16... f6
{[%clk 0:01:43.1]} 17. Rd1 {[%clk 0:01:46.2]} 17... h5 {[%clk 0:01:40.4]} 18. c5
{[%clk 0:01:44.7]} 18... h4 {[%clk 0:01:31.6]} 19. h3 {[%clk 0:01:43.9]} 19...
Qc7 {[%clk 0:01:25.4]} 20. Bc4 {[%clk 0:01:40.2]} 20... Bxc4 {[%clk 0:01:22.9]}
21. Nxc4 {[%clk 0:01:41.1]} 21... Rh6 {[%clk 0:01:21.4]} 22. Nd6 {[%clk
0:01:38.2]} 22... Rg6 {[%clk 0:01:09.6]} 23. Qb3+ {[%clk 0:01:36.1]} 23... Kh7
{[%clk 0:01:09.1]} 24. Qc4 {[%clk 0:01:36]} 24... Rh6 {[%clk 0:00:52.1]} 25.
Qe4+ {[%clk 0:01:34.3]} 25... Kg8 {[%clk 0:00:48.1]} 26. O-O {[%clk 0:01:30]}
26... Rf8 {[%clk 0:00:44.7]} 27. Rd2 {[%clk 0:01:28.3]} 27... Kh8 {[%clk
0:00:42.2]} 28. Nf5 {[%clk 0:01:24.1]} 28... Rh7 {[%clk 0:00:36.5]} 29. Nxh4
{[%clk 0:01:21.4]} 29... Nxc5 {[%clk 0:00:20.7]} 30. Ng6+ {[%clk 0:01:21.1]}
30... Kg8 {[%clk 0:00:21]} 31. Qc4+ {[%clk 0:01:19.5]} 31... Qf7 {[%clk
0:00:20.1]} 32. Ne7+ {[%clk 0:01:17.7]} 32... Kh8 {[%clk 0:00:18.6]} 33. Qxc5
{[%clk 0:01:18.2]} 1-0

[Event "Late-Titled-Tuesday-Blitz-March-12-2024"]
[Site "Chess.com"]
[Date "2024.03.12"]
[Round "7"]
[White "Fore_Man"]
[Black "SergioMoralesG"]
[Result "1-0"]
[WhiteElo "2320"]
[BlackElo "2458"]
[TimeControl "180+1"]
[EndTime "15:15:33 PDT"]
[Termination "Fore_Man won by resignation"]

1. Nf3 {[%clk 0:02:54.8]} 1... c5 {[%clk 0:02:25.6]} 2. g3 {[%clk 0:02:49.9]}
2... Nc6 {[%clk 0:02:24.3]} 3. Bg2 {[%clk 0:02:49.5]} 3... g6 {[%clk 0:02:24.2]}
4. O-O {[%clk 0:02:48.1]} 4... Bg7 {[%clk 0:02:23.9]} 5. c4 {[%clk 0:02:48.8]}
5... d6 {[%clk 0:02:23.6]} 6. Nc3 {[%clk 0:02:48.4]} 6... h5 {[%clk 0:02:22.9]}
7. h4 {[%clk 0:02:44.3]} 7... Nf6 {[%clk 0:02:21.4]} 8. d4 {[%clk 0:02:43.6]}
8... cxd4 {[%clk 0:02:19.2]} 9. Nxd4 {[%clk 0:02:44.5]} 9... Bd7 {[%clk
0:02:19.7]} 10. Bg5 {[%clk 0:02:43.3]} 10... Qc8 {[%clk 0:02:18.7]} 11. Rc1
{[%clk 0:02:34.2]} 11... Bh3 {[%clk 0:02:17]} 12. Nd5 {[%clk 0:02:23.6]} 12...
Bxg2 {[%clk 0:02:12.2]} 13. Kxg2 {[%clk 0:02:22.2]} 13... Nd7 {[%clk 0:01:35.1]}
14. Nxc6 {[%clk 0:01:46.6]} 14... Qxc6 {[%clk 0:01:34.1]} 15. Bxe7 {[%clk
0:01:46]} 15... f6 {[%clk 0:01:31.4]} 16. e4 {[%clk 0:01:26.6]} 16... Kf7 {[%clk
0:01:30.9]} 17. c5 {[%clk 0:00:57]} 17... dxc5 {[%clk 0:01:22.1]} 18. b4 {[%clk
0:00:57.1]} 18... Rae8 {[%clk 0:00:53.6]} 19. Bxc5 {[%clk 0:00:50.1]} 19... Rxe4
{[%clk 0:00:53.6]} 20. Be3 {[%clk 0:00:47.2]} 20... Qe6 {[%clk 0:00:36.8]} 21.
Nf4 {[%clk 0:00:47.3]} 21... Qe7 {[%clk 0:00:31.9]} 22. Rc7 {[%clk 0:00:46.8]}
22... Rd8 {[%clk 0:00:18]} 23. Qd5+ {[%clk 0:00:47.1]} 23... Kf8 {[%clk
0:00:16.9]} 24. Nxg6+ {[%clk 0:00:47.2]} 1-0

[Event "Late-Titled-Tuesday-Blitz-March-12-2024"]
[Site "Chess.com"]
[Date "2024.03.12"]
[Round "7"]
[White "N_Mullodzhanov"]
[Black "Sajkochess"]
[Result "1-0"]
[WhiteElo "2520"]
[BlackElo "2337"]
[TimeControl "180+1"]
[EndTime "15:15:34 PDT"]
[Termination "N_Mullodzhanov won by resignation"]

1. e4 {[%clk 0:03:00.9]} 1... c6 {[%clk 0:03:00.1]} 2. Nc3 {[%clk 0:03:00.6]}
2... d5 {[%clk 0:03:00.7]} 3. Nf3 {[%clk 0:03:00.8]} 3... Bg4 {[%clk 0:03:00.5]}
4. h3 {[%clk 0:03:00.9]} 4... Bxf3 {[%clk 0:03:00.6]} 5. Qxf3 {[%clk 0:03:01.8]}
5... e6 {[%clk 0:03:01.2]} 6. d3 {[%clk 0:03:02.3]} 6... Nd7 {[%clk 0:03:01.5]}
7. g3 {[%clk 0:03:01.9]} 7... g6 {[%clk 0:03:01.7]} 8. Bg2 {[%clk 0:03:02.1]}
8... Bg7 {[%clk 0:03:02.4]} 9. Bd2 {[%clk 0:03:01]} 9... Ne7 {[%clk 0:03:02.8]}
10. O-O {[%clk 0:03:00.7]} 10... O-O {[%clk 0:03:03]} 11. Qe2 {[%clk 0:02:58.9]}
11... Qb6 {[%clk 0:02:53.2]} 12. Na4 {[%clk 0:02:58.6]} 12... Qc7 {[%clk
0:02:50.9]} 13. f4 {[%clk 0:02:52]} 13... Rae8 {[%clk 0:02:28.5]} 14. e5 {[%clk
0:02:45.2]} 14... b5 {[%clk 0:02:17.7]} 15. Nc3 {[%clk 0:02:44.8]} 15... Qb6+
{[%clk 0:01:55.6]} 16. Kh2 {[%clk 0:02:37.5]} 16... Nf5 {[%clk 0:01:52.2]} 17.
a4 {[%clk 0:02:34.3]} 17... Nd4 {[%clk 0:01:37.9]} 18. Qd1 {[%clk 0:02:26]}
18... b4 {[%clk 0:01:33]} 19. Ne2 {[%clk 0:02:11.7]} 19... Nf5 {[%clk
0:01:31.9]} 20. a5 {[%clk 0:02:09.2]} 20... Qc5 {[%clk 0:01:28.7]} 21. c3 {[%clk
0:02:05]} 21... bxc3 {[%clk 0:01:24.4]} 22. bxc3 {[%clk 0:02:05.6]} 22... Ne3
{[%clk 0:01:24.3]} 23. Bxe3 {[%clk 0:01:58.4]} 23... Qxe3 {[%clk 0:01:25.2]} 24.
d4 {[%clk 0:01:56.8]} 24... f6 {[%clk 0:00:56.3]} 25. Rf3 {[%clk 0:01:51.4]}
25... Qe4 {[%clk 0:00:56.2]} 26. Rd3 {[%clk 0:01:50.3]} 26... Qf5 {[%clk
0:00:30.9]} 27. g4 {[%clk 0:01:50.3]} 27... Qxd3 {[%clk 0:00:25.7]} 28. Qxd3
{[%clk 0:01:51.2]} 28... fxe5 {[%clk 0:00:25.1]} 29. fxe5 {[%clk 0:01:47.9]}
29... Rb8 {[%clk 0:00:20.2]} 30. Rb1 {[%clk 0:01:47.2]} 30... Rxb1 {[%clk
0:00:13.6]} 31. Qxb1 {[%clk 0:01:48.1]} 31... Rf2 {[%clk 0:00:13.8]} 32. Ng3
{[%clk 0:01:38.3]} 32... Bh6 {[%clk 0:00:10.8]} 33. Qb7 {[%clk 0:01:36.2]} 33...
Nf8 {[%clk 0:00:11.1]} 34. Qxa7 {[%clk 0:01:33.2]} 34... Rc2 {[%clk 0:00:10.8]}
35. Qc5 {[%clk 0:01:32]} 35... Rd2 {[%clk 0:00:09.7]} 36. a6 {[%clk 0:01:30.8]}
36... Rd3 {[%clk 0:00:10.2]} 37. a7 {[%clk 0:01:24.3]} 37... Bf4 {[%clk
0:00:10.5]} 38. a8=Q {[%clk 0:01:24.5]} 38... Bxg3+ {[%clk 0:00:11]} 39. Kg1
{[%clk 0:01:24.9]} 39... Rd1+ {[%clk 0:00:11.5]} 40. Bf1 {[%clk 0:01:25.3]} 1-0

[Event "Late-Titled-Tuesday-Blitz-March-12-2024"]
[Site "Chess.com"]
[Date "2024.03.12"]
[Round "7"]
[White "ArtemDyachuk"]
[Black "Casablanca"]
[Result "0-1"]
[WhiteElo "2681"]
[BlackElo "2565"]
[TimeControl "180+1"]
[EndTime "15:15:35 PDT"]
[Termination "Casablanca won by resignation"]

1. c4 {[%clk 0:03:00.9]} 1... e6 {[%clk 0:02:58.5]} 2. Nf3 {[%clk 0:02:57.5]}
2... b6 {[%clk 0:02:59.1]} 3. g3 {[%clk 0:02:58.4]} 3... Bb7 {[%clk 0:02:59.9]}
4. Bg2 {[%clk 0:02:58.7]} 4... c5 {[%clk 0:02:58.9]} 5. O-O {[%clk 0:02:59.1]}
5... Nf6 {[%clk 0:02:58.6]} 6. b3 {[%clk 0:02:59.6]} 6... Be7 {[%clk 0:02:58.2]}
7. Bb2 {[%clk 0:03:00.2]} 7... O-O {[%clk 0:02:58.9]} 8. d4 {[%clk 0:03:00.7]}
8... cxd4 {[%clk 0:02:59.5]} 9. Qxd4 {[%clk 0:03:01.6]} 9... Nc6 {[%clk
0:02:59.7]} 10. Qd2 {[%clk 0:03:00.7]} 10... d6 {[%clk 0:02:59.7]} 11. Nc3
{[%clk 0:02:59.9]} 11... a6 {[%clk 0:02:59.7]} 12. Rfd1 {[%clk 0:02:59.6]} 12...
Qc7 {[%clk 0:03:00]} 13. Rac1 {[%clk 0:02:59.3]} 13... Ne5 {[%clk 0:03:00]} 14.
Nd4 {[%clk 0:02:56.5]} 14... Bxg2 {[%clk 0:02:59.6]} 15. Kxg2 {[%clk 0:02:57.4]}
15... Rac8 {[%clk 0:02:59.1]} 16. f3 {[%clk 0:02:53.9]} 16... Rfd8 {[%clk
0:02:58.5]} 17. e4 {[%clk 0:02:52.4]} 17... Qb7 {[%clk 0:02:57.5]} 18. Qf2
{[%clk 0:02:49.9]} 18... Nc6 {[%clk 0:02:57.2]} 19. Na4 {[%clk 0:02:48.2]} 19...
Nd7 {[%clk 0:02:55.4]} 20. Rd2 {[%clk 0:02:39]} 20... Nc5 {[%clk 0:02:54.5]} 21.
Nxc5 {[%clk 0:02:26]} 21... dxc5 {[%clk 0:02:54.2]} 22. Nxc6 {[%clk 0:02:26.6]}
22... Qxc6 {[%clk 0:02:50.1]} 23. Rcd1 {[%clk 0:02:26.5]} 23... h5 {[%clk
0:02:38.5]} 24. Rxd8+ {[%clk 0:02:21.5]} 24... Rxd8 {[%clk 0:02:39.4]} 25. Rxd8+
{[%clk 0:02:20.8]} 25... Bxd8 {[%clk 0:02:40.3]} 26. Qd2 {[%clk 0:02:20.9]}
26... Be7 {[%clk 0:02:40.1]} 27. Qd3 {[%clk 0:02:03.8]} 27... Qd6 {[%clk
0:02:30.6]} 28. Qxd6 {[%clk 0:01:53.8]} 28... Bxd6 {[%clk 0:02:31.5]} 29. f4
{[%clk 0:01:40.7]} 29... f5 {[%clk 0:02:28.2]} 30. exf5 {[%clk 0:00:56.9]} 30...
exf5 {[%clk 0:02:28.2]} 31. Kf3 {[%clk 0:00:57.8]} 31... Kf7 {[%clk 0:02:28.6]}
32. Be5 {[%clk 0:00:32.9]} 32... Bxe5 {[%clk 0:01:53.7]} 33. fxe5 {[%clk
0:00:33.8]} 33... g5 {[%clk 0:01:54.3]} 34. h4 {[%clk 0:00:31.4]} 34... gxh4
{[%clk 0:01:32.7]} 35. gxh4 {[%clk 0:00:31]} 35... Ke6 {[%clk 0:01:33.4]} 36.
Kf4 {[%clk 0:00:20.2]} 36... b5 {[%clk 0:01:33.4]} 37. a3 {[%clk 0:00:20.5]}
37... b4 {[%clk 0:01:33.6]} 38. axb4 {[%clk 0:00:18.3]} 38... cxb4 {[%clk
0:01:34.5]} 39. c5 {[%clk 0:00:14.8]} 39... a5 {[%clk 0:01:35]} 40. c6 {[%clk
0:00:13.7]} 40... a4 {[%clk 0:01:33.9]} 41. Ke3 {[%clk 0:00:09.3]} 41... a3
{[%clk 0:01:32.2]} 0-1

[Event "Late-Titled-Tuesday-Blitz-March-12-2024"]
[Site "Chess.com"]
[Date "2024.03.12"]
[Round "7"]
[White "miraitrunks"]
[Black "Hui_Li_Macau"]
[Result "1-0"]
[WhiteElo "2182"]
[BlackElo "2394"]
[TimeControl "180+1"]
[EndTime "15:15:35 PDT"]
[Termination "miraitrunks won on time"]

1. e4 {[%clk 0:02:59.6]} 1... e5 {[%clk 0:02:59.6]} 2. Nf3 {[%clk 0:02:59.9]}
2... Nf6 {[%clk 0:02:58.9]} 3. d4 {[%clk 0:03:00.4]} 3... exd4 {[%clk
0:02:59.2]} 4. e5 {[%clk 0:02:58.5]} 4... Ne4 {[%clk 0:02:59.6]} 5. Qxd4 {[%clk
0:02:58.3]} 5... d5 {[%clk 0:03:00.5]} 6. exd6 {[%clk 0:02:55.5]} 6... Nxd6
{[%clk 0:02:59.4]} 7. Bd3 {[%clk 0:02:54.7]} 7... Nc6 {[%clk 0:02:57.9]} 8. Qa4
{[%clk 0:02:44.2]} 8... Bd7 {[%clk 0:02:56.2]} 9. O-O {[%clk 0:02:43]} 9... Be7
{[%clk 0:02:52.8]} 10. Re1 {[%clk 0:02:41.1]} 10... O-O {[%clk 0:02:52.7]} 11.
Nc3 {[%clk 0:02:40.8]} 11... Bf6 {[%clk 0:01:09.7]} 12. Ne4 {[%clk 0:02:05]}
12... Ne5 {[%clk 0:00:48.6]} 13. Nxf6+ {[%clk 0:01:56.7]} 13... Qxf6 {[%clk
0:00:49.5]} 14. Qb3 {[%clk 0:01:46.3]} 14... Nxf3+ {[%clk 0:00:47.3]} 15. gxf3
{[%clk 0:01:47.2]} 15... Bc6 {[%clk 0:00:44.3]} 16. Be4 {[%clk 0:01:45.1]} 16...
Nxe4 {[%clk 0:00:26.5]} 17. fxe4 {[%clk 0:01:46]} 17... Qg6+ {[%clk 0:00:26.6]}
18. Qg3 {[%clk 0:01:43.5]} 18... Bxe4 {[%clk 0:00:19.5]} 19. c3 {[%clk
0:01:33.7]} 19... Rfe8 {[%clk 0:00:17.9]} 20. Bf4 {[%clk 0:01:25]} 20... Qxg3+
{[%clk 0:00:15.9]} 21. hxg3 {[%clk 0:01:25.9]} 21... c6 {[%clk 0:00:15.9]} 22.
Re3 {[%clk 0:01:24.3]} 22... Bd5 {[%clk 0:00:16]} 23. a3 {[%clk 0:01:19.9]}
23... Rxe3 {[%clk 0:00:07.4]} 24. Bxe3 {[%clk 0:01:20.8]} 24... f6 {[%clk
0:00:08]} 25. Rd1 {[%clk 0:01:19.1]} 25... a6 {[%clk 0:00:07.7]} 26. f4 {[%clk
0:01:19.2]} 26... Kf7 {[%clk 0:00:07.8]} 27. Kf2 {[%clk 0:01:19.4]} 1-0

[Event "Late-Titled-Tuesday-Blitz-March-12-2024"]
[Site "Chess.com"]
[Date "2024.03.12"]
[Round "7"]
[White "Schattman"]
[Black "yaguigor"]
[Result "1-0"]
[WhiteElo "2471"]
[BlackElo "2603"]
[TimeControl "180+1"]
[EndTime "15:15:36 PDT"]
[Termination "Schattman won by resignation"]

1. d4 {[%clk 0:03:00.9]} 1... d5 {[%clk 0:02:58.7]} 2. Nf3 {[%clk 0:03:00.7]}
2... Nf6 {[%clk 0:02:58]} 3. g3 {[%clk 0:03:01.3]} 3... c6 {[%clk 0:02:57.3]} 4.
Bg2 {[%clk 0:02:57.2]} 4... Bf5 {[%clk 0:02:56.7]} 5. c4 {[%clk 0:02:57.3]} 5...
e6 {[%clk 0:02:55.3]} 6. Nc3 {[%clk 0:02:56.1]} 6... h6 {[%clk 0:02:54.7]} 7.
Qb3 {[%clk 0:02:54.5]} 7... Qb6 {[%clk 0:02:53.6]} 8. c5 {[%clk 0:02:55]} 8...
Qa6 {[%clk 0:02:52.3]} 9. Bf1 {[%clk 0:02:51.1]} 9... b5 {[%clk 0:02:49.7]} 10.
a4 {[%clk 0:02:45.2]} 10... Qa5 {[%clk 0:02:49.1]} 11. Bd2 {[%clk 0:02:41]}
11... b4 {[%clk 0:02:35.6]} 12. Na2 {[%clk 0:02:36.2]} 12... Na6 {[%clk
0:02:31.1]} 13. e3 {[%clk 0:02:25.3]} 13... Rb8 {[%clk 0:02:28]} 14. Ne5 {[%clk
0:02:24.6]} 14... Nxc5 {[%clk 0:02:15.9]} 15. dxc5 {[%clk 0:02:18.1]} 15... Qxc5
{[%clk 0:02:13.9]} 16. Rc1 {[%clk 0:02:16.7]} 16... Qd6 {[%clk 0:02:09.3]} 17.
Nxc6 {[%clk 0:02:12.1]} 17... Rc8 {[%clk 0:02:00.1]} 18. Bb5 {[%clk 0:02:11.5]}
18... Nd7 {[%clk 0:01:48.2]} 19. Bxb4 {[%clk 0:02:06]} 19... Qc7 {[%clk
0:01:47.4]} 20. O-O {[%clk 0:01:49.7]} 20... Qb7 {[%clk 0:01:33.1]} 21. Bxf8
{[%clk 0:01:44.8]} 21... Kxf8 {[%clk 0:01:28.5]} 22. Qb4+ {[%clk 0:01:41.7]}
22... Kg8 {[%clk 0:01:26.5]} 23. Ne7+ {[%clk 0:01:41.1]} 23... Kh7 {[%clk
0:01:27]} 24. Rxc8 {[%clk 0:01:38.5]} 24... Rxc8 {[%clk 0:01:26.9]} 25. Nxc8
{[%clk 0:01:38.6]} 25... Qxc8 {[%clk 0:01:27.1]} 26. Rc1 {[%clk 0:01:36.6]}
26... Qb7 {[%clk 0:01:20.5]} 27. Qe7 {[%clk 0:01:30]} 27... d4 {[%clk
0:01:20.7]} 28. Qxd7 {[%clk 0:01:24.7]} 28... Qf3 {[%clk 0:01:19.6]} 29. Bc6
{[%clk 0:01:18.3]} 29... Qe2 {[%clk 0:01:14]} 30. Qxd4 {[%clk 0:01:14]} 30... h5
{[%clk 0:00:54.8]} 31. Be4 {[%clk 0:01:10.2]} 31... Kg6 {[%clk 0:00:44.9]} 32.
Bxf5+ {[%clk 0:01:06.9]} 32... exf5 {[%clk 0:00:45.8]} 33. Qd1 {[%clk
0:01:02.6]} 33... Qa6 {[%clk 0:00:43.6]} 34. h4 {[%clk 0:01:00.7]} 34... Qb6
{[%clk 0:00:36.2]} 35. Nc3 {[%clk 0:01:00.2]} 35... Qxb2 {[%clk 0:00:34.3]} 36.
Nd5 {[%clk 0:00:58.4]} 1-0